[Event "Szansa Chess Open 2022"]
[Site "Warsaw"]
[Date "2022.09.17"]
[Round "6"]
[White "Jakubowski, Krzysztof"]
[Black "Kulesza, Andrzej"]
[Result "1/2-1/2"]
[ECO "B90"]
[WhiteElo "2466"]
[BlackElo "2014"]
[Annotator "ChessBase"]
[PlyCount "141"]
[EventDate "2022.09.17"]
[EventCountry "POL"]
[SourceTitle "playchess.com"]
[Source "ChessBase"]
[SourceQuality "1"]
[TimeControl "900+10"]

1. e4 {[%emt 0:00:02]} c5 {[%emt 0:00:04]} 2. Nf3 {[%emt 0:00:02]} d6 {[%emt 0:00:02]} 3. d4 {[%emt 0:00:02]} cxd4 {[%emt 0:00:02]} 4. Nxd4 {[%emt 0:00:02]} Nf6 {[%emt 0:00:05]} 5. Nc3 {[%emt 0:00:03]} a6 {[%emt 0:00:02]} 6. a4 {[%emt 0:00:16]} e5 {[%emt 0:00:29]} 7. Nf3 {[%emt 0:00:02]} Be7 {[%emt 0:00:03]} 8. Bg5 {[%emt 0:00:05]} Be6 {[%emt 0:00:08]} 9. Bxf6 {[%emt 0:00:03]} Bxf6 {[%emt 0:00:03]} 10. Nd5 {[%emt 0:00:02]} Nd7 {[%emt 0:00:09]} 11. Bc4 {[%emt 0:00:09]} O-O {[%emt 0:00:43]} 12. O-O {[%emt 0:00:04]} Rc8 {[%emt 0:00:04]} 13. b3 {[%emt 0:00:02]} Nb6 {[%emt 0:00:36]} 14. Nxf6+ {[%emt 0:00:05]} Qxf6 {[%emt 0:00:03]} 15. Bxe6 {[%emt 0:00:02]} Qxe6 {[%emt 0:00:04]} 16. c4 {[%emt 0:00:04]} Nd7 {[%emt 0:00:34]} 17. a5 {[%emt 0:00:53]} Rc5 {[%emt 0:00:21]} 18. Ne1 {[%emt 0:00:21]} Rc6 {[%emt 0:00:21]} 19. Nd3 {[%emt 0:00:13]} Nc5 {[%emt 0:00:12]} 20. Nb4 {[%emt 0:00:03]} Rcc8 {[%emt 0:00:28]} 21. Re1 {[%emt 0:00:03]} f5 {[%emt 0:00:36]} 22. exf5 {[%emt 0:00:22]} Qxf5 {[%emt 0:00:08]} 23. Ra2 {[%emt 0:00:09]} Rcd8 {[%emt 0:00:41]} 24. Re3 {[%emt 0:00:14]} Kh8 {[%emt 0:00:41]} 25. h3 {[%emt 0:00:22]} Rf6 {[%emt 0:00:09]} 26. Nd5 {[%emt 0:00:37]} Rf7 {[%emt 0:00:36]} 27. Nc3 {[%emt 0:00:56]} Ne6 {[%emt 0:00:29]} 28. Rf3 {[%emt 0:00:23]} Nf4 {[%emt 0:00:22]} 29. Nd5 {[%emt 0:00:31]} Qh5 {[%emt 0:00:39]} 30. Rd2 {[%emt 0:00:14]} Ne6 {[%emt 0:01:16]} 31. Rxf7 {[%emt 0:00:52]} Qxf7 {[%emt 0:00:01]} 32. Nc3 {[%emt 0:00:15]} Qc7 {[%emt 0:02:15]} 33. Kh2 {[%emt 0:03:35]} Nd4 {[%emt 0:00:23]} 34. Ra2 {[%emt 0:02:04]} Rf8 {[%emt 0:01:05]} 35. Kh1 {[%emt 0:01:24]} Qc5 {[%emt 0:01:15]} 36. Ra4 {[%emt 0:01:25]} Qc6 {[%emt 0:00:25]} 37. f3 {[%emt 0:00:24]} Rb8 {[%emt 0:00:39]} 38. Nd5 {[%emt 0:00:20]} h6 {[%emt 0:00:04]} 39. Rb4 {[%emt 0:00:15]} Qc5 {[%emt 0:00:19]} 40. Rb6 {[%emt 0:00:29]} Nc6 {[%emt 0:00:15]} 41. Qd2 {[%emt 0:01:34]} Qxa5 {[%emt 0:00:12]} 42. Qxa5 {[%emt 0:00:42]} Nxa5 {[%emt 0:00:01]} 43. Ne7 {[%emt 0:00:02]} Rd8 {[%emt 0:00:18]} 44. Kg1 {[%emt 0:00:20]} Rd7 {[%emt 0:00:09]} 45. Nf5 {[%emt 0:00:23]} Nc6 {[%emt 0:00:43]} 46. b4 {[%emt 0:00:02]} g6 {[%emt 0:00:26]} 47. Nxh6 {[%emt 0:00:03]} Kg7 {[%emt 0:00:02]} 48. Ng4 {[%emt 0:00:01]} Ne7 {[%emt 0:00:15]} 49. c5 {[%emt 0:01:06]} Nc8 {[%emt 0:00:01]} 50. c6 {[%emt 0:00:02]} Nxb6 {[%emt 0:00:08]} 51. cxd7 {[%emt 0:00:01]} Nxd7 {[%emt 0:00:01]} 52. Kf2 {[%emt 0:00:01]} Nb8 {[%emt 0:00:15]} 53. Ne3 {[%emt 0:00:04]} Nc6 {[%emt 0:00:01]} 54. Nd5 {[%emt 0:00:05]} Kf7 {[%emt 0:00:01]} 55. Ke3 {[%emt 0:00:06]} Ke6 {[%emt 0:00:02]} 56. Ke4 {[%emt 0:00:01]} Ne7 {[%emt 0:00:06]} 57. Nxe7 {[%emt 0:00:32]} Kxe7 {[%emt 0:00:01]} 58. Kd5 {[%emt 0:00:02]} Kd7 {[%emt 0:00:12]} 59. h4 {[%emt 0:00:01]} b6 {[%emt 0:00:04]} 60. g4 {[%emt 0:00:01]} a5 {[%emt 0:00:02]} 61. bxa5 {[%emt 0:00:27]} bxa5 {[%emt 0:00:01]} 62. Kc4 {[%emt 0:00:01]} Ke6 {[%emt 0:00:21]} 63. Kb5 {[%emt 0:00:01]} d5 {[%emt 0:00:04]} 64. Kxa5 {[%emt 0:00:01]} e4 {[%emt 0:00:00]} 65. fxe4 {[%emt 0:00:01]} dxe4 {[%emt 0:00:01]} 66. Kb4 {[%emt 0:00:01]} Ke5 {[%emt 0:00:01]} 67. h5 {[%emt 0:00:07]} gxh5 {[%emt 0:00:03]} 68. gxh5 {[%emt 0:00:01]} Kf5 {[%emt 0:00:02]} 69. Kc3 {[%emt 0:00:02]} Kg5 {[%emt 0:00:01]} 70. Kd4 {[%emt 0:00:01]} Kxh5 {[%emt 0:00:02]} 71. Kxe4 {[%emt 0:00:00]} 1/2-1/2

[Event "Szansa Chess Open 2022"]
[Site "Warsaw"]
[Date "2022.09.17"]
[Round "6"]
[White "Nguyen, Piotr"]
[Black "Goraj, Barbara"]
[Result "1-0"]
[ECO "A15"]
[WhiteElo "2421"]
[BlackElo "2121"]
[Annotator "ChessBase"]
[PlyCount "137"]
[EventDate "2022.09.17"]
[EventCountry "POL"]
[SourceTitle "playchess.com"]
[Source "ChessBase"]
[SourceQuality "1"]
[TimeControl "900+10"]

1. c4 {[%emt 0:00:01]} Nf6 {[%emt 0:00:07]} 2. g3 {[%emt 0:00:02]} g6 {[%emt 0:00:06]} 3. Bg2 {[%emt 0:00:02]} Bg7 {[%emt 0:00:02]} 4. Nc3 {[%emt 0:00:02]} d6 {[%emt 0:00:02]} 5. e4 {[%emt 0:00:01]} e5 {[%emt 0:00:59]} 6. Nge2 {[%emt 0:00:02]} O-O {[%emt 0:00:05]} 7. O-O {[%emt 0:00:03]} c5 {[%emt 0:00:39]} 8. d3 {[%emt 0:00:03]} Nc6 {[%emt 0:00:04]} 9. h3 {[%emt 0:00:38]} Nd4 {[%emt 0:00:28]} 10. f4 {[%emt 0:00:32]} Ne8 {[%emt 0:02:22]} 11. Nxd4 {[%emt 0:00:52]} exd4 {[%emt 0:00:12]} 12. Nd5 {[%emt 0:00:02]} f5 {[%emt 0:00:52]} 13. exf5 {[%emt 0:00:03]} Bxf5 {[%emt 0:00:12]} 14. Re1 {[%emt 0:00:16]} Rf7 {[%emt 0:00:27]} 15. Qe2 {[%emt 0:00:57]} Bf8 {[%emt 0:00:27]} 16. b4 {[%emt 0:00:46]} Rc8 {[%emt 0:00:21]} 17. a4 {[%emt 0:00:39]} Kg7 {[%emt 0:00:30]} 18. a5 {[%emt 0:00:28]} Nf6 {[%emt 0:02:08]} 19. Qf1 {[%emt 0:01:32]} h5 {[%emt 0:01:39]} 20. Bd2 {[%emt 0:00:14]} Nxd5 {[%emt 0:01:11]} 21. Bxd5 {[%emt 0:00:02]} Re7 {[%emt 0:00:04]} 22. Rxe7+ {[%emt 0:00:15]} Qxe7 {[%emt 0:00:15]} 23. Kh2 {[%emt 0:00:31]} Qd7 {[%emt 0:00:20]} 24. Rb1 {[%emt 0:00:31]} Rc7 {[%emt 0:00:46]} 25. Bg2 {[%emt 0:00:23]} Qa4 {[%emt 0:00:35]} 26. bxc5 {[%emt 0:01:56]} Qc2 {[%emt 0:01:18]} 27. cxd6 {[%emt 0:01:55]} Bxd6 {[%emt 0:00:17]} 28. Qf2 {[%emt 0:01:50]} Qxd3 {[%emt 0:00:30]} 29. Rb5 {[%emt 0:03:44]} Bc5 {[%emt 0:02:00]} 30. Qe1 {[%emt 0:00:26]} Re7 {[%emt 0:00:55]} 31. Rxb7 {[%emt 0:00:02]} Rxb7 {[%emt 0:00:04]} 32. Bxb7 {[%emt 0:00:07]} Qxc4 {[%emt 0:00:19]} 33. Qe5+ {[%emt 0:01:08]} Kh7 {[%emt 0:00:01]} 34. Bg2 {[%emt 0:00:20]} Bf8 {[%emt 0:00:11]} 35. Qe1 {[%emt 0:00:22]} Bg7 {[%emt 0:00:10]} 36. Bf3 {[%emt 0:00:05]} Qc8 {[%emt 0:00:18]} 37. Qf1 {[%emt 0:00:13]} d3 {[%emt 0:00:04]} 38. Qg2 {[%emt 0:00:02]} Bc3 {[%emt 0:00:17]} 39. Be3 {[%emt 0:00:15]} Qc7 {[%emt 0:00:04]} 40. g4 {[%emt 0:00:02]} hxg4 {[%emt 0:00:07]} 41. hxg4 {[%emt 0:00:02]} Be6 {[%emt 0:00:15]} 42. Be4 {[%emt 0:00:01]} d2 {[%emt 0:00:10]} 43. Bxd2 {[%emt 0:00:12]} Bxd2 {[%emt 0:00:03]} 44. Qxd2 {[%emt 0:00:01]} Bxg4 {[%emt 0:00:01]} 45. Kg3 {[%emt 0:00:14]} Qd7 {[%emt 0:00:29]} 46. Qh2+ {[%emt 0:00:36]} Kg7 {[%emt 0:00:08]} 47. Qb2+ {[%emt 0:00:01]} Kh7 {[%emt 0:00:08]} 48. Qf6 {[%emt 0:00:12]} Bf5 {[%emt 0:00:12]} 49. Bxf5 {[%emt 0:00:05]} gxf5 {[%emt 0:00:11]} 50. Kh4 {[%emt 0:00:13]} Qd5 {[%emt 0:00:10]} 51. a6 {[%emt 0:00:21]} Qh1+ {[%emt 0:00:08]} 52. Kg5 {[%emt 0:00:01]} Qg2+ {[%emt 0:00:07]} 53. Kxf5 {[%emt 0:00:02]} Qc2+ {[%emt 0:00:03]} 54. Ke6 {[%emt 0:00:07]} Qc4+ {[%emt 0:00:04]} 55. Kd7 {[%emt 0:00:10]} Qd3+ {[%emt 0:00:31]} 56. Kc7 {[%emt 0:00:03]} Qb3 {[%emt 0:00:03]} 57. f5 {[%emt 0:00:07]} Qb1 {[%emt 0:00:16]} 58. Qg6+ {[%emt 0:00:16]} Kh8 {[%emt 0:00:02]} 59. Qh6+ {[%emt 0:00:02]} Kg8 {[%emt 0:00:01]} 60. Qe6+ {[%emt 0:00:01]} Kh8 {[%emt 0:00:03]} 61. f6 {[%emt 0:00:11]} Qb2 {[%emt 0:00:20]} 62. Kc8 {[%emt 0:00:36]} Qb1 {[%emt 0:00:12]} 63. Qe7 {[%emt 0:00:20]} Qf5+ {[%emt 0:00:20]} 64. Kb8 {[%emt 0:00:12]} Qf4+ {[%emt 0:00:12]} 65. Kxa7 {[%emt 0:00:02]} Qf2+ {[%emt 0:00:09]} 66. Kb7 {[%emt 0:00:01]} Qf3+ {[%emt 0:00:04]} 67. Kc7 {[%emt 0:00:02]} Qc3+ {[%emt 0:00:05]} 68. Kd8 {[%emt 0:00:12]} Qd3+ {[%emt 0:00:23]} 69. Qd7 {[%emt 0:00:12]} 1-0

[Event "Szansa Chess Open 2022"]
[Site "Warsaw"]
[Date "2022.09.17"]
[Round "6"]
[White "Psyk, Radoslaw"]
[Black "Smieszek, Wojciech"]
[Result "1-0"]
[ECO "B20"]
[WhiteElo "2404"]
[BlackElo "2082"]
[Annotator "ChessBase"]
[PlyCount "79"]
[EventDate "2022.09.17"]
[EventCountry "POL"]
[SourceTitle "playchess.com"]
[Source "ChessBase"]
[SourceQuality "1"]
[TimeControl "900+10"]

1. e4 {[%emt 0:00:03]} c5 {[%emt 0:00:01]} 2. Be2 {[%emt 0:00:01]} g6 {[%emt 0:00:02]} 3. f4 {[%emt 0:00:01]} Bg7 {[%emt 0:00:01]} 4. Nf3 {[%emt 0:00:02]} Nc6 {[%emt 0:00:02]} 5. O-O {[%emt 0:00:03]} d6 {[%emt 0:00:02]} 6. d3 {[%emt 0:00:01]} e6 {[%emt 0:00:06]} 7. c3 {[%emt 0:00:12]} Nge7 {[%emt 0:00:03]} 8. Be3 {[%emt 0:00:14]} O-O {[%emt 0:00:07]} 9. Na3 {[%emt 0:01:41]} Rb8 {[%emt 0:00:13]} 10. d4 {[%emt 0:00:30]} cxd4 {[%emt 0:00:26]} 11. cxd4 {[%emt 0:00:02]} d5 {[%emt 0:00:03]} 12. e5 {[%emt 0:00:02]} a6 {[%emt 0:00:38]} 13. Bf2 {[%emt 0:00:28]} Qb6 {[%emt 0:00:58]} 14. b3 {[%emt 0:03:22]} Bd7 {[%emt 0:00:16]} 15. Nc2 {[%emt 0:00:03]} Na7 {[%emt 0:00:21]} 16. Ne3 {[%emt 0:00:42]} Bb5 {[%emt 0:00:27]} 17. g4 {[%emt 0:03:04]} Bxe2 {[%emt 0:00:26]} 18. Qxe2 {[%emt 0:00:01]} Nb5 {[%emt 0:00:24]} 19. Qd3 {[%emt 0:00:16]} Rfc8 {[%emt 0:00:46]} 20. f5 {[%emt 0:00:28]} Nc6 {[%emt 0:01:16]} 21. Ng2 {[%emt 0:03:29]} Nb4 {[%emt 0:00:30]} 22. Qd2 {[%emt 0:00:02]} Rc3 {[%emt 0:02:47]} 23. Ng5 {[%emt 0:00:29]} a5 {[%emt 0:01:21]} 24. a3 {[%emt 0:00:40]} Rc2 {[%emt 0:04:14]} 25. Qd1 {[%emt 0:00:56]} Nc3 {[%emt 0:00:17]} 26. Qf3 {[%emt 0:00:01]} Ne4 {[%emt 0:01:36]} 27. Nxe4 {[%emt 0:00:21]} dxe4 {[%emt 0:00:02]} 28. Qxe4 {[%emt 0:00:12]} Rxf2 {[%emt 0:00:05]} 29. Rxf2 {[%emt 0:00:04]} Nd5 {[%emt 0:00:02]} 30. fxg6 {[%emt 0:00:28]} hxg6 {[%emt 0:00:22]} 31. Raf1 {[%emt 0:00:18]} Rf8 {[%emt 0:00:07]} 32. Rf3 {[%emt 0:00:16]} Qc7 {[%emt 0:00:20]} 33. Nf4 {[%emt 0:01:02]} Nxf4 {[%emt 0:00:42]} 34. Qxf4 {[%emt 0:00:02]} Qe7 {[%emt 0:00:03]} 35. a4 {[%emt 0:00:07]} Qd7 {[%emt 0:00:18]} 36. h4 {[%emt 0:00:22]} Qe7 {[%emt 0:00:24]} 37. h5 {[%emt 0:00:21]} g5 {[%emt 0:00:24]} 38. Qe3 {[%emt 0:00:30]} f5 {[%emt 0:00:56]} 39. exf6 {[%emt 0:00:09]} Rxf6 {[%emt 0:00:11]} 40. Qxg5 {[%emt 0:00:12]} 1-0

[Event "Szansa Chess Open 2022"]
[Site "Warsaw"]
[Date "2022.09.17"]
[Round "6"]
[White "Lewtak, Damian"]
[Black "Krasenkova, Elena"]
[Result "1-0"]
[ECO "A06"]
[WhiteElo "2386"]
[BlackElo "2124"]
[Annotator "ChessBase"]
[PlyCount "111"]
[EventDate "2022.09.17"]
[EventCountry "POL"]
[SourceTitle "playchess.com"]
[Source "ChessBase"]
[SourceQuality "1"]
[TimeControl "900+10"]

1. Nf3 {[%emt 0:00:02]} d5 {[%emt 0:00:01]} 2. b3 {[%emt 0:00:01]} Nf6 3. Bb2 {[%emt 0:00:02]} Bf5 {[%emt 0:00:14]} 4. d3 {[%emt 0:00:05]} e6 {[%emt 0:00:06]} 5. Nbd2 {[%emt 0:00:02]} Be7 {[%emt 0:00:27]} 6. g3 {[%emt 0:00:05]} h6 {[%emt 0:00:48]} 7. Bg2 {[%emt 0:00:02]} O-O {[%emt 0:00:03]} 8. O-O {[%emt 0:00:04]} c6 {[%emt 0:00:04]} 9. Qe1 {[%emt 0:00:02]} Nbd7 {[%emt 0:00:26]} 10. e4 {[%emt 0:00:02]} dxe4 {[%emt 0:00:14]} 11. dxe4 {[%emt 0:00:02]} Bg6 {[%emt 0:00:15]} 12. Qe2 {[%emt 0:00:13]} Qc7 {[%emt 0:00:20]} 13. Rfd1 {[%emt 0:00:23]} Rad8 {[%emt 0:01:26]} 14. h3 {[%emt 0:00:46]} Rfe8 {[%emt 0:00:03]} 15. a3 {[%emt 0:00:25]} a5 {[%emt 0:00:13]} 16. Ne1 {[%emt 0:00:34]} Bc5 {[%emt 0:00:58]} 17. e5 {[%emt 0:00:21]} Nd5 {[%emt 0:00:19]} 18. c4 {[%emt 0:00:17]} Ne7 {[%emt 0:00:01]} 19. Ne4 {[%emt 0:00:26]} Bb6 {[%emt 0:00:45]} 20. Nd6 {[%emt 0:00:28]} Rf8 {[%emt 0:00:07]} 21. b4 {[%emt 0:00:24]} Rb8 {[%emt 0:03:18]} 22. Rd2 {[%emt 0:00:26]} Nc8 {[%emt 0:01:28]} 23. Rad1 {[%emt 0:00:47]} Rd8 {[%emt 0:00:46]} 24. Ne8 {[%emt 0:00:11]} Rxe8 {[%emt 0:00:16]} 25. Rxd7 {[%emt 0:00:02]} axb4 {[%emt 0:00:15]} 26. Rxc7 {[%emt 0:00:10]} Bxc7 {[%emt 0:00:07]} 27. axb4 {[%emt 0:00:03]} Ne7 {[%emt 0:00:07]} 28. Nf3 {[%emt 0:00:23]} Nf5 {[%emt 0:00:25]} 29. Rd7 {[%emt 0:00:18]} Bd8 {[%emt 0:00:10]} 30. g4 {[%emt 0:00:32]} Nh4 {[%emt 0:01:02]} 31. Nxh4 {[%emt 0:00:02]} Bxh4 {[%emt 0:00:02]} 32. Be4 {[%emt 0:00:03]} Bxe4 {[%emt 0:00:08]} 33. Qxe4 {[%emt 0:00:03]} Red8 {[%emt 0:00:01]} 34. Rxd8+ {[%emt 0:00:15]} Rxd8 {[%emt 0:00:01]} 35. Bd4 {[%emt 0:00:02]} Be7 {[%emt 0:00:25]} 36. Bc3 {[%emt 0:00:34]} Rd1+ {[%emt 0:00:02]} 37. Kg2 {[%emt 0:00:02]} Rd8 {[%emt 0:00:20]} 38. Qc2 {[%emt 0:00:18]} Ra8 {[%emt 0:00:06]} 39. Qd2 {[%emt 0:00:12]} Rd8 {[%emt 0:00:05]} 40. Qa2 {[%emt 0:00:03]} Rd3 {[%emt 0:00:53]} 41. Qa8+ {[%emt 0:00:10]} Bf8 {[%emt 0:00:01]} 42. Bb2 {[%emt 0:00:49]} Rd2 {[%emt 0:00:56]} 43. Bc1 {[%emt 0:00:05]} Rd7 {[%emt 0:01:14]} 44. Be3 {[%emt 0:00:09]} f5 {[%emt 0:00:08]} 45. Bc5 {[%emt 0:00:11]} Rf7 {[%emt 0:00:00]} 46. Bxf8 {[%emt 0:00:02]} Rxf8 {[%emt 0:00:01]} 47. Qxb7 {[%emt 0:00:03]} fxg4 {[%emt 0:00:02]} 48. hxg4 {[%emt 0:00:04]} Rf4 {[%emt 0:00:13]} 49. Qxc6 {[%emt 0:00:03]} Rxg4+ {[%emt 0:00:04]} 50. Kf3 {[%emt 0:00:02]} Rg6 {[%emt 0:00:13]} 51. b5 {[%emt 0:00:04]} Kh7 {[%emt 0:00:02]} 52. b6 {[%emt 0:00:03]} Rg1 {[%emt 0:00:10]} 53. Qxe6 {[%emt 0:00:08]} g6 {[%emt 0:00:22]} 54. Qf7+ {[%emt 0:00:04]} Kh8 {[%emt 0:00:02]} 55. e6 {[%emt 0:00:04]} Rb1 {[%emt 0:00:07]} 56. e7 {[%emt 0:00:07]} 1-0

[Event "Szansa Chess Open 2022"]
[Site "Warsaw"]
[Date "2022.09.17"]
[Round "6"]
[White "Kokoszczynski, Jan"]
[Black "Nasuta, Grzegorz"]
[Result "0-1"]
[ECO "D31"]
[WhiteElo "2313"]
[BlackElo "2531"]
[Annotator "ChessBase"]
[PlyCount "104"]
[EventDate "2022.09.17"]
[EventCountry "POL"]
[SourceTitle "playchess.com"]
[Source "ChessBase"]
[SourceQuality "1"]
[TimeControl "900+10"]

1. d4 {[%emt 0:00:01]} d5 {[%emt 0:00:00]} 2. c4 {[%emt 0:00:01]} e6 {[%emt 0:00:01]} 3. Nc3 {[%emt 0:00:17]} c6 {[%emt 0:00:01]} 4. e4 {[%emt 0:00:28]} dxe4 {[%emt 0:00:02]} 5. Nxe4 {[%emt 0:00:02]} Bb4+ {[%emt 0:00:00]} 6. Nc3 {[%emt 0:00:48]} c5 {[%emt 0:00:01]} 7. a3 {[%emt 0:00:26]} Bxc3+ {[%emt 0:00:16]} 8. bxc3 {[%emt 0:00:01]} Nf6 {[%emt 0:00:07]} 9. Nf3 {[%emt 0:00:02]} Nc6 {[%emt 0:00:12]} 10. Bd3 {[%emt 0:00:40]} cxd4 {[%emt 0:00:21]} 11. cxd4 {[%emt 0:00:01]} Nxd4 {[%emt 0:00:02]} 12. O-O {[%emt 0:01:09]} Nc6 {[%emt 0:00:01]} 13. Qe2 {[%emt 0:00:12]} O-O {[%emt 0:03:39]} 14. Bb2 {[%emt 0:01:16]} Re8 {[%emt 0:00:37]} 15. Rad1 {[%emt 0:00:46]} Qe7 {[%emt 0:00:02]} 16. Rfe1 {[%emt 0:01:38]} Nd7 {[%emt 0:01:58]} 17. h4 {[%emt 0:03:24]} Nf8 {[%emt 0:02:28]} 18. Be4 {[%emt 0:02:33]} f6 {[%emt 0:01:40]} 19. h5 {[%emt 0:00:24]} e5 {[%emt 0:03:40]} 20. Nh4 {[%emt 0:00:02]} Be6 {[%emt 0:00:42]} 21. Bd5 {[%emt 0:00:02]} Rad8 {[%emt 0:00:55]} 22. Nf5 {[%emt 0:02:07]} Qc7 {[%emt 0:00:02]} 23. Qg4 {[%emt 0:01:02]} Kh8 {[%emt 0:00:16]} 24. Qe4 {[%emt 0:00:27]} Bxf5 {[%emt 0:00:07]} 25. Qxf5 {[%emt 0:00:01]} Ne7 {[%emt 0:00:01]} 26. Qe4 {[%emt 0:00:09]} Nxd5 {[%emt 0:00:01]} 27. cxd5 {[%emt 0:00:03]} h6 {[%emt 0:00:08]} 28. Rd2 {[%emt 0:00:36]} Qf7 {[%emt 0:00:02]} 29. Qf3 {[%emt 0:00:44]} Rd7 {[%emt 0:00:01]} 30. a4 {[%emt 0:00:14]} Red8 {[%emt 0:00:01]} 31. Red1 {[%emt 0:00:01]} Nh7 {[%emt 0:00:14]} 32. Qg4 {[%emt 0:00:18]} Ng5 {[%emt 0:00:23]} 33. d6 {[%emt 0:00:20]} Qe6 {[%emt 0:00:16]} 34. Qb4 {[%emt 0:00:06]} Qf5 {[%emt 0:00:57]} 35. Rd3 {[%emt 0:00:10]} Nf7 {[%emt 0:00:05]} 36. g4 {[%emt 0:00:22]} Qe6 {[%emt 0:00:04]} 37. Ba3 {[%emt 0:00:03]} e4 {[%emt 0:00:04]} 38. Rg3 {[%emt 0:00:11]} b6 {[%emt 0:00:40]} 39. Re1 {[%emt 0:00:07]} Nxd6 {[%emt 0:00:24]} 40. Qd4 {[%emt 0:00:03]} Nc4 {[%emt 0:00:57]} 41. Qxe4 {[%emt 0:00:01]} Qxe4 {[%emt 0:00:02]} 42. Rxe4 {[%emt 0:00:01]} Rd4 {[%emt 0:00:07]} 43. Be7 {[%emt 0:00:41]} Rxe4 {[%emt 0:00:08]} 44. Bxd8 {[%emt 0:00:01]} Ne5 {[%emt 0:00:10]} 45. Bc7 {[%emt 0:00:17]} Rxa4 {[%emt 0:00:09]} 46. Bxe5 {[%emt 0:00:16]} fxe5 {[%emt 0:00:01]} 47. g5 {[%emt 0:00:01]} hxg5 {[%emt 0:00:10]} 48. Rxg5 {[%emt 0:00:00]} Ra5 {[%emt 0:00:01]} 49. Kf1 {[%emt 0:00:08]} e4 {[%emt 0:00:07]} 50. Rg4 {[%emt 0:00:04]} Rxh5 {[%emt 0:00:04]} 51. Rxe4 {[%emt 0:00:02]} a5 {[%emt 0:00:03]} 52. Re3 {[%emt 0:00:10]} Rb5 {[%emt 0:00:15]} 0-1

[Event "Szansa Chess Open 2022"]
[Site "Warsaw"]
[Date "2022.09.17"]
[Round "6"]
[White "Fiszer, Bartosz"]
[Black "Kosakowski, Jakub"]
[Result "0-1"]
[ECO "B15"]
[WhiteElo "2232"]
[BlackElo "2457"]
[Annotator "ChessBase"]
[PlyCount "128"]
[EventDate "2022.09.17"]
[EventCountry "POL"]
[SourceTitle "playchess.com"]
[Source "ChessBase"]
[SourceQuality "1"]
[TimeControl "900+10"]

1. e4 {[%emt 0:00:01]} c6 {[%emt 0:00:02]} 2. d4 {[%emt 0:00:03]} d5 {[%emt 0:00:05]} 3. Nd2 {[%emt 0:00:01]} dxe4 {[%emt 0:00:04]} 4. Nxe4 {[%emt 0:00:02]} Nf6 {[%emt 0:00:02]} 5. Nxf6+ {[%emt 0:00:10]} exf6 {[%emt 0:00:03]} 6. c3 {[%emt 0:00:03]} Bd6 {[%emt 0:00:02]} 7. Bd3 {[%emt 0:00:03]} O-O {[%emt 0:00:04]} 8. Ne2 {[%emt 0:00:05]} Re8 {[%emt 0:00:04]} 9. O-O {[%emt 0:00:16]} Nd7 {[%emt 0:00:20]} 10. Bf4 {[%emt 0:00:43]} Nf8 {[%emt 0:00:30]} 11. Qd2 {[%emt 0:00:14]} Be6 {[%emt 0:01:02]} 12. Rfe1 {[%emt 0:01:32]} Ng6 {[%emt 0:00:30]} 13. Bxd6 {[%emt 0:00:40]} Qxd6 {[%emt 0:00:04]} 14. Ng3 {[%emt 0:01:26]} Nf4 {[%emt 0:02:19]} 15. Qc2 {[%emt 0:01:34]} Nxd3 {[%emt 0:00:43]} 16. Qxd3 {[%emt 0:00:22]} Rad8 {[%emt 0:00:18]} 17. Ne4 {[%emt 0:00:17]} Qf4 {[%emt 0:00:42]} 18. Qg3 {[%emt 0:00:30]} Qxg3 {[%emt 0:00:15]} 19. Nxg3 {[%emt 0:00:57]} Kf8 {[%emt 0:00:16]} 20. f3 {[%emt 0:00:25]} b6 {[%emt 0:00:51]} 21. Ne4 {[%emt 0:01:24]} h6 {[%emt 0:01:01]} 22. a3 {[%emt 0:03:07]} f5 {[%emt 0:00:24]} 23. Nf2 {[%emt 0:00:04]} Bb3 {[%emt 0:00:22]} 24. Nd3 {[%emt 0:04:33]} Rxe1+ {[%emt 0:00:04]} 25. Rxe1 {[%emt 0:00:05]} c5 {[%emt 0:00:03]} 26. Ne5 {[%emt 0:00:34]} Ba4 {[%emt 0:00:36]} 27. dxc5 {[%emt 0:00:11]} bxc5 {[%emt 0:00:07]} 28. Kf2 {[%emt 0:00:15]} f6 {[%emt 0:00:17]} 29. Ng6+ {[%emt 0:00:12]} Kf7 {[%emt 0:00:03]} 30. Nf4 {[%emt 0:00:03]} g5 {[%emt 0:00:08]} 31. Ne2 {[%emt 0:00:14]} Rd2 {[%emt 0:00:07]} 32. b4 {[%emt 0:00:04]} f4 {[%emt 0:01:02]} 33. c4 {[%emt 0:00:14]} Bb3 {[%emt 0:00:45]} 34. Rc1 {[%emt 0:00:15]} Bd1 {[%emt 0:00:14]} 35. Ke1 {[%emt 0:00:06]} Rxe2+ {[%emt 0:00:03]} 36. Kxd1 {[%emt 0:00:02]} Rxg2 {[%emt 0:00:02]} 37. bxc5 {[%emt 0:00:01]} g4 {[%emt 0:00:45]} 38. Rc3 {[%emt 0:00:29]} g3 {[%emt 0:01:20]} 39. hxg3 {[%emt 0:00:03]} fxg3 {[%emt 0:00:02]} 40. f4 {[%emt 0:00:16]} Ke6 {[%emt 0:01:12]} 41. Rd3 {[%emt 0:00:06]} Rg1+ {[%emt 0:00:13]} 42. Ke2 {[%emt 0:00:03]} g2 {[%emt 0:00:04]} 43. Kf2 {[%emt 0:00:07]} Rc1 {[%emt 0:00:03]} 44. Kxg2 {[%emt 0:00:24]} Rxc4 {[%emt 0:00:02]} 45. Rd6+ {[%emt 0:00:02]} Kf5 {[%emt 0:00:04]} 46. c6 {[%emt 0:00:05]} h5 {[%emt 0:00:22]} 47. Kg3 {[%emt 0:00:21]} a6 {[%emt 0:00:40]} 48. Rd5+ {[%emt 0:00:13]} Ke4 {[%emt 0:00:11]} 49. Rxh5 {[%emt 0:00:08]} Rxc6 {[%emt 0:00:02]} 50. Ra5 {[%emt 0:00:03]} Ke3 {[%emt 0:02:50]} 51. Ra4 {[%emt 0:00:14]} f5 {[%emt 0:00:02]} 52. Kh4 {[%emt 0:00:14]} Rg6 {[%emt 0:00:36]} 53. Kh5 {[%emt 0:00:05]} Rg1 {[%emt 0:00:02]} 54. Rxa6 {[%emt 0:00:09]} Kxf4 {[%emt 0:00:02]} 55. a4 {[%emt 0:00:04]} Rh1+ {[%emt 0:00:18]} 56. Kg6 {[%emt 0:00:03]} Kg4 {[%emt 0:00:02]} 57. a5 {[%emt 0:00:28]} f4 {[%emt 0:00:01]} 58. Rb6 {[%emt 0:00:06]} Ra1 {[%emt 0:00:15]} 59. a6 {[%emt 0:00:13]} f3 {[%emt 0:00:01]} 60. Rf6 {[%emt 0:00:13]} Kg3 {[%emt 0:00:02]} 61. Kf7 {[%emt 0:00:04]} f2 {[%emt 0:00:02]} 62. Ke7 {[%emt 0:00:01]} f1=Q {[%emt 0:00:09]} 63. Rxf1 {[%emt 0:00:07]} Rxf1 {[%emt 0:00:02]} 64. Kd7 {[%emt 0:00:02]} Ra1 {[%emt 0:00:02]} 0-1